Cogmind - Beta 17 @@@ ROGUE MODE // 2026.08.02 @ 19:02:59 Player: 4R-ZE3 Result: Self-destructed Performance ------------- Evolutions (0) 0 Regions Visited (3) 600 Robots Destroyed (10) 50 Value Destroyed (328) 328 Prototype IDs (7) 140 Alien Tech Used (0) 0 Bonus (800) 800 TOTAL SCORE: 1918 Bonus ------- Registered with UFD 300 Met Optimus in HQ 500 Cogmind --------- Core Integrity 83/250 Matter 260/300 Energy 160/160 System Corruption 0% Temperature Cool (0) Movement Rolling (130) Ox2 Location -9/Scraptown Parts ------- > --- POWER (1) -------- Light Fission Core > --- PROPULSION (2) --- Compact Wheel Compact Wheel > --- UTILITY (2) ------ Huge Storage Unit Layered Light Armor Plating > --- WEAPON (2) ------- Battle Cannon Hammer > --- INVENTORY (25) --- Ion Engine Improved Ion Engine Light Treads Improved Treads Improved Treads Spiked Treads Wheel Armored Wheel VTOL Module Medium Storage Unit Large Storage Unit Sensor Array Advanced Signal Interpreter Medium Armor Plating Makeshift Light Armor Plating Layered Light Armor Plating Hardlight Generator Makeshift Hacking Suite Light Cannon Light Cannon Battle Cannon DRS Beacon (Ready) Peak State ------------ > --- POWER ------------ Light Fission Core > --- PROPULSION ------- Wheel Compact Wheel > --- UTILITY ---------- Huge Storage Unit Layered Light Armor Plating > --- WEAPON ----------- Battle Cannon Hammer > --- INVENTORY -------- Ion Engine Improved Ion Engine Light Treads Improved Treads Improved Treads Spiked Treads Compact Wheel Armored Wheel Subdweller Monowheel VTOL Module Medium Storage Unit Large Storage Unit Sensor Array Advanced Signal Interpreter Medium Armor Plating Makeshift Light Armor Plating Layered Light Armor Plating Hardlight Generator Makeshift Hacking Suite Light Cannon Light Cannon Battle Cannon DRS Beacon [Rating: 20] Favorites ----------- Power Light Fission Core Engine Ion Engine Power Core Light Fission Core Propulsion Compact Wheel Treads Light Treads Wheel Compact Wheel Utility Huge Storage Unit Storage Huge Storage Unit Protection Layered Light Armor Plating Weapon Hammer Ballistic Gun Light Assault Rifle Ballistic Cannon Battle Cannon Impact Weapon Hammer Build | -11 -10 -10 -9 ------- Run | Yrd Mat Sub Scr Slots Evolved . | . . . . Power . | . . . . Propulsion . | . . . . Utility . | . . . . Weapon . | . . . . Parts Attached 18 | 6 1 7 4 Power 3 | 1 . 1 1 Engine 2 | 1 . 1 . Core 1 | . . . 1 Reactor . | . . . . Propulsion 6 | 2 . 2 2 Treads 2 | 2 . . . Leg . | . . . . Wheel 4 | . . 2 2 Hover . | . . . . Flight . | . . . . Utility 4 | 1 1 1 1 Device . | . . . . Storage 3 | 1 1 1 . Processor . | . . . . Hackware . | . . . . Protection 1 | . . . 1 Artifact . | . . . . Weapon 5 | 2 . 3 . Energy Gun . | . . . . Energy Cannon . | . . . . Ballistic Gun 2 | 2 . . . Ballistic Cannon 2 | . . 2 . Launcher . | . . . . Special Weapon . | . . . . Impact Weapon 1 | . . 1 . Slashing Weapon . | . . . . Piercing Weapon . | . . . . Special Melee Weapon . | . . . . Unidentified Prototypes . | . . . . Parts Lost 5 | . . 5 . Power 1 | . . 1 . Propulsion 2 | . . 2 . Utility . | . . . . Weapon 2 | . . 2 . Highest Loss Streak 5 | . . 5 . To Critical Strikes . | . . . . Average Backups 12 | 1 4 6 18 Power 2 | . 1 1 2 Propulsion 3 | . 2 1 5 Utility 3 | . . 1 5 Weapon 3 | . . 1 5 Tool/Special . | . . . . Unused Backups 25 | . . . 25 Power 4 | . . . 4 Propulsion 6 | . . . 6 Utility 8 | . . . 8 Weapon 7 | . . . 7 Tool/Special . | . . . . Average Slot Usage (%) 85 | . 85 78 89 Engine 6 | . 14 14 1 Core 7 | . . . 12 Treads 5 | . 28 6 . Wheel 21 | . . 21 28 Storage 14 | . 14 14 14 Protection 2 | . . . 3 Ballistic Gun 5 | . 28 4 . Ballistic Cannon 9 | . . 5 14 Impact Weapon 11 | . . 12 14 Peak Build Rating 20 | 6 7 9 20 Average Rating 11 | 4 6 6 15 On Entrance 5 | . 6 6 9 Avg Prop Armor Cover (%) . | . . . . Naked Turns . | . . . . Heaviest Build 96 | 10 20 90 96 Greatest Support 40 | 40 40 40 32 Greatest Overweight (x) 3 | 1 . 3 3 Average Overweight (x) 1 | . . . 2 Largest Inventory Capacity 25 | 8 10 25 25 Average Capacity 18 | 7 8 11 25 Most Carried 23 | 3 6 12 23 Average Carried 12 | 1 4 6 18 Final Capacity 25 | 8 10 25 25 Final Carried 22 | 3 6 12 22 Class Distribution -------------------- 100% | Mutant Dominant Class ---------------- Mutant | -10/Materials Mutant | -10/Subcaves Mutant | -9/Scraptown Resources | -11 -10 -10 -9 ----------- Run | Yrd Mat Sub Scr Matter Collected 402 | 93 158 141 10 Remotely . | . . . . Salvage Created 334 | . 207 127 . Parts 19 | . 14 5 . Haulers Intercepted . | . . . . Recyclers Shooed . | . . . . Parts Field Recycled . | . . . . Retrieved Matter . | . . . . Parts Self-Destructed . | . . . . Prevented . | . . . . Parts Restored . | . . . . Kills | -11 -10 -10 -9 ------- Run | Yrd Mat Sub Scr Combat Hostiles Destroyed 8 | . 4 4 . Melee 1 | . . 1 . Guns 4 | . 4 . . Classes Destroyed 3 | . 2 1 . Operator 2 | . 2 . . Grunt 4 | . 4 . . Subdweller 4 | . . 4 . Best Kill Streak 3 | . 3 1 . Combat Bots Only 2 | . 2 1 . Max Kills in Single Turn 1 | . 1 1 . Gunslinging . | . . . . Exploded . | . . . . Melee 1 | . . 1 . Uniques/NPCs Destroyed . | . . . . Combat | -11 -10 -10 -9 -------- Run | Yrd Mat Sub Scr Hostile Shots Fired 73 | . 30 43 . Missed 19 | . 6 13 . Hits 54 | . 24 30 . Projectile 54 | . 24 30 . Damage Taken 921 | . 284 637 . Core 167 | . 66 101 . Absorbed by Shields . | . . . . Core Remaining (%) 100 | 100 . . . Volleys Fired 26 | . 20 6 . Largest 2 | . 2 2 . Hottest 40 | . 40 40 . Shots Fired 49 | . 40 9 . Gun 47 | . 40 7 . Cannon 2 | . . 2 . Launcher . | . . . . Special . | . . . . Kinetic 49 | . 40 9 . Thermal . | . . . . Explosive . | . . . . Electromagnetic . | . . . . Robot Hit Streak 13 | . 13 6 . Robot Miss Streak 2 | . 2 1 . Penetration Max . | . . . . Secondary Targets 2 | . 2 . . Max Gunslinging Chain 1 | . 1 . . Shots Hit Robots 50 | . 28 22 . Core Hits 13 | . 11 2 . Critical Kills 1 | . 1 . . Critical Parts Destroyed 1 | . . 1 . Critical Strikes 2 | . 1 1 . Destroy 1 | . 1 . . Smash 1 | . . 1 . Melee Attacks 30 | . . 30 . Impact 30 | . . 30 . Slashing . | . . . . Piercing . | . . . . Sneak Attacks . | . . . . Combat Hostiles . | . . . . Follow-up Attacks . | . . . . Damage Inflicted 676 | . 250 426 . Guns 300 | . 250 50 . Cannons . | . . . . Explosions . | . . . . Melee 376 | . . 376 . Ramming . | . . . . Kinetic 300 | . 250 50 . Thermal . | . . . . Explosive . | . . . . Electromagnetic . | . . . . Impact 376 | . . 376 . Slashing . | . . . . Piercing . | . . . . Highest Corruption . | . . . . Average Corruption . | . . . . Corruption Purged . | . . . . Corruption Blocked . | . . . . Overload Shots . | . . . . Overflow Damage 72 | . . 72 . Projectiles . | . . . . Explosions . | . . . . Melee 72 | . . 72 . Knockbacks 2 | . . 2 . Impact 2 | . . 2 . Kinetic . | . . . . Secondary . | . . . . Self-Inflicted Damage . | . . . . Shots . | . . . . Rammed . | . . . . Targets Rammed . | . . . . Kicked . | . . . . Crushed . | . . . . Highest Temperature 30 | . 30 . . Average Temperature 11 | . 11 . . Received Heat Transfer 282 | . 144 138 . Siege Activations . | . . . . Martial Activations . | . . . . Shielding Activations . | . . . . Robots Disrupted . | . . . . Combat Hostiles . | . . . . Robots Corrupted 3 | . . 3 . Combat Hostiles 3 | . . 3 . Parts Fried 4 | . . 4 . Impact Corruptions 4 | . . 4 . Robots Melted . | . . . . Combat Hostiles . | . . . . Parts Melted . | . . . . Heat Transferred . | . . . . Parts Sabotaged . | . . . . Parts Stolen . | . . . . Parts Stripped . | . . . . Power Chain Reactions . | . . . . Alert | -11 -10 -10 -9 ------- Run | Yrd Mat Sub Scr Maximum Alert Level . | . . . . Low Security (%) 100 | 100 100 . . Level 1 . | . . . . Level 2 . | . . . . Level 3 . | . . . . Level 4 . | . . . . Level 5 . | . . . . High Security . | . . . . Max Security . | . . . . Peak Influence 66 | . 66 . . Initial . | . . . . Average 21 | . 25 . . Influence Increases 122 | . 122 . . Destroy 0b10 Robot/C 80 | . 80 . . Destroy 0b10 Robot/NC 10 | . 10 . . Destroy Leader 20 | . 20 . . Successful Hack 12 | . 12 . . Influence Decreases 122 | . 122 . . Time Decay 122 | . 122 . . Squads Dispatched 2 | . 2 . . Investigation . | . . . . Extermination . | . . . . Reinforcement 2 | . 2 . . Assault . | . . . . Garrison . | . . . . Intercept . | . . . . Searches Triggered . | . . . . Construction Impeded . | . . . . Haulers Reinforced . | . . . . Active Scanning Responses . | . . . . Cargo Convoy Interrupts . | . . . . Stealth | -11 -10 -10 -9 --------- Run | Yrd Mat Sub Scr Distress Signals . | . . . . Communications Jammed . | . . . . Distress Signals . | . . . . Times Spotted 12 | . 8 4 . Peak Tracking Total 2 | . 2 2 . Tactical Retreats . | . . . . Traps | -11 -10 -10 -9 ------- Run | Yrd Mat Sub Scr Traps Triggered 1 | . 1 . . Indirectly . | . . . . Trap Hack Attempts . | . . . . Triggered . | . . . . Disarmed . | . . . . Reprogrammed . | . . . . Reused . | . . . . Traps Extracted . | . . . . Installed . | . . . . Triggered . | . . . . Machines | -11 -10 -10 -9 ---------- Run | Yrd Mat Sub Scr Machines Disabled . | . . . . Max in Single Turn . | . . . . Machines Repaired . | . . . . Machines Dismantled . | . . . . Machines Sabotaged . | . . . . Overloaded Fab Kills . | . . . . Hacking | -11 -10 -10 -9 --------- Run | Yrd Mat Sub Scr Machines Accessed 6 | . 4 . 2 Terminals 3 | . 3 . . Fabricators . | . . . . Repair Stations . | . . . . Recycling Units 1 | . 1 . . Scanalyzers . | . . . . Garrison Access . | . . . . Total Hacks 11 | . 6 . 5 Successful 9 | . 4 . 5 Failed 2 | . 2 . . Catastrophic . | . . . . Database Lockouts . | . . . . Manual 5 | . 5 . . Terminals 5 | . 5 . . Fabricators . | . . . . Repair Stations . | . . . . Recycling Units 1 | . 1 . . Scanalyzers . | . . . . Garrison Access . | . . . . Terminal Hacks 7 | . 2 . 5 Record 4 | . . . 4 Robot Analysis 2 | . 2 . . Proto ID Catalog 1 | . . . 1 Fabricator Hacks . | . . . . Repair Station Hacks . | . . . . Recycling Unit Hacks 1 | . 1 . . Retrieve Components 1 | . 1 . . Scanalyzer . | . . . . Garrison Access Hacks . | . . . . Unauthorized Hacks 1 | . 1 . . Terminals 1 | . 1 . . Botnet 1 | . 1 . . Fabricators . | . . . . Repair Stations . | . . . . Recycling Units . | . . . . Scanalyzers . | . . . . Garrison Access . | . . . . Data Cores Recovered . | . . . . Used . | . . . . Hacking Detections 3 | . 3 . . Full Trace Events . | . . . . Feedback Events . | . . . . Feedback Blocked . | . . . . Robot Schematics Acquired . | . . . . Robots Built . | . . . . Authchips . | . . . . Time . | . . . . Total Robot Build Rating . | . . . . Part Schematics Acquired . | . . . . Parts Built . | . . . . Authchips . | . . . . Time . | . . . . Total Part Build Rating . | . . . . Part Studies Acquired . | . . . . Parts Repaired . | . . . . Time . | . . . . Parts Recycled . | . . . . Recycled Matter . | . . . . Retrieved Matter . | . . . . Retrieved Components 1 | . 1 . . Parts Scanalyzed . | . . . . Part Schematics Acquired . | . . . . Parts Damaged . | . . . . Bothacking | -11 -10 -10 -9 ------------ Run | Yrd Mat Sub Scr Used RIF Installer . | . . . . Robots Hacked . | . . . . Non-combat . | . . . . Combat . | . . . . Robot Hacks Applied . | . . . . Relay Couplers Released . | . . . . Fabnet Peak Effective % . | . . . . Robots Rewired . | . . . . Allies Hacked . | . . . . Hacks Repelled . | . . . . Allies | -11 -10 -10 -9 -------- Run | Yrd Mat Sub Scr Total Allies . | . . . . Largest Group . | . . . . Highest-Rated Group . | . . . . Highest-Rated Ally . | . . . . Total Orders . | . . . . Ally Attacks . | . . . . Total Damage . | . . . . Kills . | . . . . Allies Corrupted . | . . . . Allies Melted . | . . . . Intel | -11 -10 -10 -9 ------- Run | Yrd Mat Sub Scr Active Infowar (turns) . | . . . . Robot Analysis Total 2 | . 2 . . Derelict Logs Recovered 4 | . . 1 3 Drone Launches . | . . . . Drone Recoveries . | . . . . Exploration | -11 -10 -10 -9 ------------- Run | Yrd Mat Sub Scr Turns Passed 2393 | 67 336 653 1337 Spaces Moved 1691 | 36 166 518 971 Core 2 | 2 . . . Treads 256 | 34 166 56 . Legs . | . . . . Wheels 1433 | . . 462 971 Hover . | . . . . Flight . | . . . . Fastest Speed 50 | 50 160 90 130 Average Speed 126 | 155 160 100 134 Slowest Speed 160 | 160 160 160 135 Overloaded Moves . | . . . . Propulsion Burnouts . | . . . . Robots Hopped . | . . . . Potential Cave-ins . | . . . . Cave-ins Triggered . | . . . . Exploration Rate (%) 33 | 3 34 34 64 Regions Visited 3 Branch Regions 2 Pre-discovered Areas 1 | . . 1 . Known Exits Taken . | . . . . Unknown Exits Taken 3 | 1 1 1 . Scrap Searched 10 | . . 3 7 Spaces Dug . | . . . . Terrain Destroyed . | . . . . Melee . | . . . . Projectile . | . . . . AOE . | . . . . Terrain Rammed . | . . . . Walls Destroyed . | . . . . Machines Disabled . | . . . . Actions | -11 -10 -10 -9 --------- Run | Yrd Mat Sub Scr Total 1842 | 44 205 591 1002 Wait 30 | . 15 15 . Move 1688 | 35 165 517 971 Hop . | . . . . Pick Up 36 | 3 3 12 18 Fast Attach 8 | 6 1 . 1 Attach 5 | . . 5 . Detach . | . . . . Swap 8 | . . 4 4 Drop 11 | . 1 2 8 Fire 26 | . 20 6 . Melee 30 | . . 30 . Ram . | . . . . Kick . | . . . . Crush . | . . . . Escape Stasis . | . . . . Rewire . | . . . . Trap . | . . . . Miscellaneous . | . . . . Route ------- -11/Scrapyard -10/Materials (discovered 2 exits: [*Min] / [*Sub]) -10/Subcaves -9/Scraptown (discovered 1 exit: [*Fac]) History --------- Turn | Location | Event 9 | -11/Scrapyard | Discovered new exit (range 16) 68 | -11/Scrapyard | Entered Materials 283 | -10/Materials | Discovered new exit (range 11) 316 | -10/Materials | Build established: Mutant 390 | -10/Materials | Discovered new exit (range 8) 404 | -10/Materials | Entered Subcaves 405 | -10/Subcaves | Approached by a straggling Scientist 411 | -10/Subcaves | Learned location of 1 exit from Materials 512 | -10/Subcaves | Core integrity fell below 50% 575 | -10/Subcaves | Lost 5 parts (1p2n2w) 580 | -10/Subcaves | Learned location of Zion (-7) 580 | -10/Subcaves | Met a Zionite searching for "candidates" 730 | -10/Subcaves | Shifting Twisted Machinery released Sub. Shrapnel Launcher 734 | -10/Subcaves | Shifting Twisted Machinery released Piercing Trap 796 | -10/Subcaves | Shifting Twisted Machinery released Battle Cannon 1057 | -10/Subcaves | Entered Scraptown 1253 | -9/Scraptown | Visited IN-MT5's Study 1282 | -9/Scraptown | Visited Bundlers 1351 | -9/Scraptown | Visited Observation Area 1374 | -9/Scraptown | Visited Awakened 1409 | -9/Scraptown | Scanned Subdweller tech in exchange for log data 1413 | -9/Scraptown | Learned Research terminal intel 1415 | -9/Scraptown | Learned Factory terminal intel 1416 | -9/Scraptown | Learned 12 Research zone layouts 1444 | -9/Scraptown | Discovered new exit (range 13) 1566 | -9/Scraptown | Visited UFD Registry 1566 | -9/Scraptown | Registered with UFD as "Fluxbox" 1656 | -9/Scraptown | Guru changed UFD alias to "Matterwarp" 1790 | -9/Scraptown | Visited Science Guys 1834 | -9/Scraptown | Visited DA-N13 Charitable Foundation 1840 | -9/Scraptown | Found DCF Scrap (28 items) 2002 | -9/Scraptown | Visited Botcube Research 2019 | -9/Scraptown | Visited Supply Room 2058 | -9/Scraptown | Visited Abandonware Association 2089 | -9/Scraptown | Visited Derelict Rescue Squad 2097 | -9/Scraptown | Found DRS Beacon 2125 | -9/Scraptown | Visited Junk Repository 2181 | -9/Scraptown | Visited Curators Association 2311 | -9/Scraptown | Met Optimus 2311 | -9/Scraptown | Accepted into 0bPrime 2369 | -9/Scraptown | Learned abandonware demo "REBOOT5.EXE" 2393 | -9/Scraptown | Civil war broke out across Scraptown 2394 | -9/Scraptown | Self-destructed Last Messages --------------- DATA::[UNSAFE] >>Record "SPOTLESS.EXE" Workers who don't know when to quit because you messed with their sensors are great, rapidly cleaning the same machine so much it breaks lol. DATA::[WIP] Optimus: Don't stick around too long, I wouldn't want the wrong bots to get wind of you helping us. 02393_ ANNOUNCEMENT: The Council has discovered that 0bPrime has been recruiting others in a plan that puts all of Scraptown in danger. 02393_ Slug penetrates Machine. 02393_ Machine disabled. 02393_ Slug penetrates Machine. 02393_ Machine disabled. 02393_ HV Slug penetrates Machine. Map ----- +----------------------------------------------------+ | ?????????????????????????????????????????????????? | | ?????????????????????????????????????????????????? | | ?????????????????????????????????????????????????? | | ?????????????????????????????????????????????????? | | ?????????????????????????????????????????????????? | | ?????????????????????????????????????????????????? | | ?????????????????????????????????????????????????? | | ?????????????????????????????????????????????????? | | ?????????????????????????????????????????????????? | | ?????????????????????????????????????????????????? | | ???????????????????????? ???????????????????????? | | ???????????????????????? ???????????????????????? | | ???????????????????????? ???????????????????????? | | ???????????????????????# ???????????????????????? | | ????????????##########?# ???????????????????????? | | ????????????#""""""""#?# ???????????????????????? | | ????????????#" &&" "#?# ???????????????????????? | | ????????????#" "#?# #???+#?????????????????? | | ????????????#"" ""#?# #??" ?????????????????? | | ????????????#" "#?# #?= ????????????????? | | ###########?#"" ""#?# #?" ????????????????? | | #! #]]]#[*#?#" "#?# #? ????????????????? | | #![# ! #[ #?#"" ""#?# #? ????????????????? | | #] # # #?# #?# ## ?????????????????? | | # #?# #?# #" ??????????????????? | | # #?# #?# @#" ???????????????????? | | ###### ####?###### ###?# ## #???????????????????? | | ###### ########### ##### ## #############???????? | | """""" """"""""""" """"" " "## "#???????? | | 3 "## ""#???????? | | "## """" "#???????? | | "## "### "#???????? | | "## "#X ""#???????? | | "### "#???????? | | """""""""""""""""""""""" "## """" "#???????? | | """""""""""""""""""""""" "## ""#???????? | | #### ################"" "## "#???????? | | ##????????#" "############???????? | | X"?????????#" "##""""""#??????????? | | "" "" ##????????#" "## "!!!"#??????????? | | "" "" X"#??????###"" "## !!#??????????? | | " " ######### #"" "## ||#??????????? | | "" ||#??????????? | | "" "## !!"#??????????? | | " " ######### #"" "## ""!"#??????????? | | "" "" ""#??????###""= "##""""""#??????????? | | "" "" ##????????#"" "#########??????????? | | X"?????????#"" "#??""""#???????????? | | ##????????#"" "#??""""#???????????? | | #### ################"" "#? "&""#???????????? | +----------------------------------------------------+ Best States ------------- Heat Dissipation 25 Energy Generation 18 Energy Capacity 250 Matter Stores 300 Matter Capacity 300 Sight Range 16 Terrain Scan Density 10 Armor Coverage 150 Evasion (%) 42 Recoil Reduction 2 Item Schematics ----------------- None Robot Schematics ------------------ None Fabricated ------------ Nothing Repaired ---------- Nothing Studied --------- None Alien Tech Used ----------------- None Achievements -------------- None Challenges ------------ None Game ------ Seed PiercingTripodPlating Manual? 0 Play Time 00:16:17 Cumulative 150.6 hours Start 2026.08.02 @ 18:48:57 End 2026.08.02 @ 19:02:59 Sessions 1 Manual Loads 0 Difficulty Rogue Special Mode None Game No. 161 Rogue 107 Adventurer 54 Explorer 0 Win Type - Total 7 Types 3/0/1/1/0/0/0/1/0/1 Lore% 60 Gallery% 56 Achievement% 52 Wizard Run 0 Options --------- Layout 1 ASCII 0 Keyboard 0 Movement Mouse Keybinds 1 Fullscreen 2 Font 32/Tamsyn Map View 50x35 Zoom Use 0% Tactical HUD 1 Map Filters NONE Filters NONE Steam 1 RUN: d9663ae5-c2fa-4287-ad2c-f5b451f9af60